bitfinex-derivatives/quotes_BTCF0:USTF0_20210111
["timestamp","ask_amount","ask_price","bid_price","bid_amount"]
[1610339923486,3.5518,35117.0,35051.0,0.09532]
[1610339923688,3.63037,35117.0,35051.0,0.09532]
[1610339923887,0.1556,35116.0,35038.0,0.07547]
[1610339924088,3.63037,35117.0,35038.0,0.07547]
[1610339924290,0.1556,35116.0,35052.0,0.13632608]
[1610339924491,1.1556,35116.0,35052.0,0.13632608]
[1610339925091,1.1556,35116.0,35030.0,0.08609]
[1610339925691,1.1556,35116.0,35017.0,0.07487]
[1610339925892,1.1556,35116.0,35057.0,4.618]
[1610339926092,1.1556,35116.0,34991.0,0.07616]
[1610339926295,0.13632608,35011.0,35003.0,0.13632608]
[1610339926492,0.22303608,35011.0,35003.0,0.13632608]
[1610339926693,0.08671,35011.0,35003.0,0.13632608]
[1610339926893,0.08121,35011.0,35003.0,0.13632608]
[1610339927494,6.0,35036.0,35003.0,0.13632608]
[1610339927693,6.0,35036.0,35003.0,0.21766608]
[1610339927893,6.0,35036.0,35004.0,0.0002]
[1610339928295,0.13632608,35030.0,35021.0,0.13632608]
[1610339928494,0.23473608,35030.0,35021.0,0.13632608]
[1610339929094,0.09841,35030.0,35021.0,0.13632608]
[1610339929697,0.09841,35030.0,34991.0,0.07616]
[1610339930297,0.13632608,35014.0,35004.0,0.13632608]
[1610339930496,0.25340608,35014.0,34992.0,0.0002]
[1610339930896,0.11708,35014.0,34992.0,0.0002]
[1610339931097,0.11708,35014.0,34991.0,0.07616]
[1610339931297,0.11708,35014.0,34992.0,0.0002]
[1610339931698,0.09841,35030.0,34992.0,0.0919]
[1610339931898,0.09841,35030.0,34993.0,0.0002]
[1610339932298,0.09841,35030.0,35007.0,0.13632608]
[1610339932299,0.13632608,35019.0,35007.0,0.13632608]
[1610339932499,0.25017608,35019.0,35007.0,0.13632608]
[1610339932699,0.11385,35019.0,35007.0,0.13632608]
[1610339933701,0.09841,35030.0,35007.0,0.13632608]
[1610339933901,0.07935,35040.0,35007.0,0.13632608]
[1610339934105,1.0,35068.0,35007.0,0.13632608]
[1610339934301,0.13632608,35014.0,35003.0,0.13632608]
[1610339934700,0.09415,35022.0,35003.0,0.13632608]
[1610339935702,0.09415,35022.0,35001.0,0.10216]
[1610339936305,0.13632608,35014.0,35001.0,0.10216]
[1610339937104,0.09415,35022.0,35001.0,0.10216]
[1610339937505,0.09125,35022.0,35001.0,0.10216]
[1610339937704,1.6292,35068.0,35002.0,0.0002]
[1610339938305,1.0,35025.0,35008.0,1.0]
[1610339938705,0.9795,35025.0,35008.0,1.0]
[1610339938906,1.07557,35025.0,35008.0,1.0]
[1610339939103,0.10667,35025.0,34992.0,0.0919]
[1610339939308,0.10667,35025.0,34933.0,0.0854]
[1610339939507,0.10667,35025.0,34967.0,0.0002]
[1610339939707,0.10667,35025.0,34967.0,0.0771]
[1610339940107,0.10667,35025.0,34968.0,0.0002]
[1610339940305,0.10667,35025.0,34986.0,0.13632608]
[1610339940507,0.10667,35025.0,34976.0,0.0824]
[1610339942107,0.10667,35025.0,34967.0,0.0769]
[1610339942305,0.13632608,34968.0,34967.0,0.0769]
[1610339943107,0.25224608,34968.0,34891.0,7.3268]
[1610339944106,0.25224608,34968.0,34897.0,0.0852]
[1610339944307,0.25224608,34968.0,34941.0,0.13632608]
[1610339946408,0.25224608,34968.0,34962.0,0.13632608]
[1610339947008,0.11592,34968.0,34962.0,0.13632608]
[1610339947210,0.11049,34976.0,34962.0,0.13632608]
[1610339947608,0.07813,34990.0,34962.0,0.21203608]
[1610339947808,4.0577,35004.0,34962.0,0.21203608]
[1610339948408,4.0577,35004.0,35003.0,0.13632608]
[1610339948608,0.10667,35025.0,35003.0,0.13632608]
[1610339948808,3.9043,35051.0,35003.0,0.13632608]
[1610339950413,0.13632608,35042.0,35009.0,0.13632608]
[1610339950612,0.20817608,35042.0,35009.0,0.13632608]
[1610339951412,0.20817608,35042.0,34989.0,0.09323]
[1610339951813,0.20817608,35042.0,34990.0,0.0002]
[1610339952416,0.07185,35042.0,35003.0,0.13632608]
[1610339954415,0.07185,35042.0,34996.0,0.10094]
[1610339954416,0.07185,35042.0,35020.0,0.13632608]
[1610339955314,0.07185,35042.0,34996.0,0.10094]
[1610339955715,1.0,35062.0,34997.0,0.0002]
[1610339956515,0.13632608,35033.0,35010.0,0.13632608]
[1610339956715,0.25246608,35033.0,35010.0,0.13632608]
[1610339957517,0.11614,35033.0,35010.0,0.13632608]
[1610339957914,1.0,35061.0,35010.0,0.13632608]
[1610339958115,1.0,35061.0,35010.0,0.20990608]
[1610339958314,1.0,35061.0,35011.0,0.0854]
[1610339958516,1.0,35061.0,35059.0,0.13632608]
[1610339958715,0.9466,35061.0,35059.0,0.13632608]
[1610339958915,0.6571,35061.0,35059.0,0.13632608]
[1610339959115,3.3124,35068.0,35059.0,0.21303608]
[1610339959316,3.26384225,35086.0,35059.0,0.21303608]
[1610339959517,3.2759962,35094.0,35059.0,0.21303608]
[1610339959918,3.27749664,35099.0,35059.0,0.21303608]
[1610339960321,3.28605143,35105.0,35059.0,0.21303608]
[1610339960520,3.28605143,35105.0,35098.0,0.13632608]
[1610339960720,3.29320173,35111.0,35098.0,0.13632608]
[1610339960920,3.30218363,35120.0,35098.0,0.13632608]
[1610339962122,0.13632608,35123.0,35098.0,0.13632608]
[1610339962320,3.30758188,35129.0,35098.0,0.13632608]
[1610339962521,3.30758188,35129.0,35122.0,0.13632608]
[1610339963122,3.31478495,35136.0,35122.0,0.13632608]
[1610339963723,3.31038495,35136.0,35122.0,0.13632608]
[1610339963923,3.48445223,35155.0,35122.0,0.13632608]
[1610339964523,3.48445223,35155.0,35151.0,0.13632608]
[1610339964724,3.4933159,35164.0,35151.0,0.13632608]
[1610339964923,3.49938192,35168.0,35151.0,0.13632608]
[1610339965124,3.49938192,35168.0,35125.0,0.07399]
[1610339965324,3.59297192,35168.0,35125.0,0.07399]
[1610339965730,0.09359,35168.0,35125.0,0.07399]
[1610339965923,0.09359,35168.0,35127.0,3.8593]
[1610339966526,0.13632608,35128.0,35127.0,3.8593]
[1610339966925,0.13632608,35128.0,35125.0,0.07399]
[1610339967325,0.13632608,35128.0,35117.0,0.08217]
[1610339967526,6.0,35126.0,35117.0,0.08217]
[1610339969125,6.0,35126.0,35109.0,0.10326]
[1610339969325,5.9777,35126.0,35108.0,0.0855]
[1610339969525,4.1274,35150.0,35108.0,0.0855]
[1610339969725,3.47875602,35165.0,35108.0,0.16198]
[1610339969927,1.0,35137.0,35119.0,1.0]
[1610339970629,0.13632608,35120.0,35119.0,1.0]
[1610339971626,1.0,35137.0,35119.0,1.0]
[1610339971829,1.0,35120.0,35119.0,0.08212]
[1610339973830,0.13632608,35121.0,35119.0,0.08212]
[1610339974632,0.13632608,35127.0,35120.0,0.13632608]
[1610339975031,0.11633,35136.0,35120.0,0.13632608]
[1610339975631,1.0,35166.0,35120.0,0.13632608]
[1610339975833,3.2923,35172.0,35120.0,0.13632608]
[1610339976632,0.13632608,35142.0,35130.0,0.13632608]
[1610339976831,0.13632608,35142.0,35119.0,0.08212]
[1610339977034,0.13632608,35142.0,35108.0,0.07648]
[1610339977233,0.13632608,35142.0,35097.0,4.0173]
[1610339978632,0.13632608,35122.0,35113.0,0.13632608]
[1610339979033,0.13632608,35122.0,35097.0,4.0173]
[1610339980032,1.0,35098.0,35097.0,4.0173]
[1610339980633,1.21216608,35098.0,35097.0,4.0173]
[1610339980832,1.21216608,35098.0,35072.0,1.0]
[1610339981036,0.21216608,35098.0,35088.0,0.0927]
[1610339981233,0.21216608,35098.0,34972.0,1.0]
[1610339981832,0.21216608,35098.0,34973.0,0.0868]
[1610339982033,0.21216608,35098.0,34973.0,0.16013]
[1610339982233,0.21216608,35098.0,34974.0,0.0002]
[1610339982834,0.13632608,35068.0,35066.0,0.13632608]
[1610339983036,0.13632608,35068.0,35035.0,1.0]
[1610339983436,5.0,35070.0,35035.0,1.0]
[1610339983638,5.0,35070.0,35035.0,1.09352]
[1610339983835,5.0,35070.0,35036.0,0.0002]
[1610339984037,5.0,35070.0,35037.0,4.2525]
[1610339984236,4.9583,35070.0,35037.0,4.2525]
[1610339984436,4.517,35096.0,35037.0,4.2525]
[1610339984837,0.13632608,35088.0,35084.0,0.13632608]
[1610339985239,4.517,35096.0,35084.0,0.13632608]
[1610339985838,0.11163,35107.0,35084.0,0.13632608]
[1610339986038,0.0773,35120.0,35084.0,0.13632608]
[1610339986439,4.0424,35130.0,35084.0,0.13632608]
[1610339986640,4.0424,35130.0,35080.0,0.09401]
[1610339986641,4.0424,35130.0,35104.0,0.13632608]
[1610339986840,4.0424,35130.0,35090.0,0.09745]
[1610339987039,4.12396,35130.0,35090.0,0.09745]
[1610339988039,4.12396,35130.0,35059.0,3.9926]
[1610339988440,1.0,35117.0,35060.0,0.0002]
[1610339988639,1.07645,35117.0,35060.0,0.0002]
[1610339988842,0.13632608,35061.0,35059.0,3.9926]
[1610339991240,0.07165,35062.0,35059.0,3.9926]
[1610339992843,0.13632608,35060.0,35059.0,3.9926]
[1610339994044,0.13632608,35060.0,35035.0,0.22984608]
[1610339994842,0.13632608,35053.0,35051.0,0.13632608]
[1610339995043,0.07165,35062.0,35051.0,0.13632608]
[1610339995243,1.0,35104.0,35051.0,0.13632608]
[1610339995644,1.0,35104.0,35051.0,0.24678608]
[1610339996045,1.0,35104.0,35052.0,0.0002]
[1610339996445,1.0,35122.0,35052.0,0.0002]
[1610339996846,1.0,35122.0,35082.0,0.13632608]
[1610339997846,4.3664,35094.0,35082.0,0.13632608]
[1610339998046,4.46902,35094.0,35082.0,0.13632608]
[1610339998446,1.0,35083.0,35082.0,0.13632608]
[1610340000449,0.13632608,35092.0,35082.0,0.13632608]
[1610340000848,0.13632608,35092.0,35088.0,0.13632608]
[1610340001048,0.13632608,35092.0,35077.0,0.10408]
[1610340001249,0.13632608,35092.0,35060.0,0.03657]
[1610340001852,0.13632608,35092.0,35061.0,0.0002]
[1610340002150,0.13632608,35092.0,35060.0,0.03657]
[1610340002749,0.13632608,35066.0,35060.0,0.03657]
[1610340002952,0.13632608,35066.0,35059.0,0.13632608]
[1610340003353,0.13632608,35066.0,35028.0,0.2824]
[1610340003753,0.13632608,35066.0,35052.0,0.0002]
[1610340003952,0.13632608,35066.0,35046.0,0.09412]
[1610340004754,0.13632608,35047.0,35046.0,0.09412]
[1610340005154,0.13632608,35047.0,35028.0,0.2824]
[1610340005355,0.13632608,35047.0,35008.0,3.8299]
[1610340005556,0.07372,35068.0,35029.0,0.0002]
[1610340005755,0.07372,35068.0,35029.0,0.10069]
[1610340005955,0.07372,35068.0,35029.0,0.10049]
[1610340006155,0.07372,35068.0,35030.0,0.0002]
[1610340006355,0.07372,35068.0,35029.0,0.10049]
[1610340006757,0.13632608,35036.0,35032.0,0.13632608]
[1610340007858,0.13632608,35036.0,35029.0,0.06481608]
[1610340008861,0.13632608,35030.0,35029.0,0.06481608]
[1610340010160,0.07856,35053.0,35029.0,0.06481608]
[1610340010762,0.13632608,35040.0,35033.0,0.13632608]
[1610340011163,0.13632608,35040.0,35008.0,3.8299]
[1610340011364,0.13632608,35040.0,35009.0,0.0843]
[1610340011563,0.13632608,35040.0,35009.0,0.1809]
[1610340011762,0.13632608,35040.0,35009.0,0.1811]
[1610340011965,0.13632608,35040.0,35010.0,0.0002]
[1610340012762,1.0,35026.0,35010.0,0.0002]
[1610340013364,0.9653,35026.0,35010.0,0.0002]
[1610340013562,0.13632608,35031.0,35010.0,0.0002]
[1610340013763,4.7298,35050.0,35010.0,0.0002]
[1610340014364,4.7298,35050.0,35011.0,0.0853]
[1610340014765,0.13632608,35035.0,35034.0,0.13632608]
[1610340015365,4.7298,35050.0,35034.0,0.13652608]
[1610340015566,4.7298,35050.0,35035.0,0.0002]
[1610340016266,4.7298,35050.0,35036.0,0.0853]
[1610340016668,4.7298,35050.0,35037.0,0.0002]
[1610340016867,4.7298,35050.0,35049.0,0.13632608]
[1610340017667,5.7298,35050.0,35049.0,0.13632608]
[1610340018468,5.7298,35050.0,35049.0,0.22262608]
[1610340018668,5.7298,35050.0,35047.0,0.09559]
[1610340018868,0.13632608,35048.0,35047.0,0.09559]
[1610340020972,0.13632608,35048.0,35032.0,0.10970608]
[1610340021573,0.13632608,35048.0,35009.0,0.0966]
[1610340021772,0.13632608,35048.0,34992.0,0.0846]
[1610340021972,0.13632608,35048.0,35010.0,0.0002]
[1610340022174,0.13632608,35048.0,35010.0,0.09865]
[1610340022773,0.13632608,35048.0,35011.0,0.0002]
[1610340022974,3.4955909,35051.0,35023.0,0.13632608]
[1610340023173,3.4955909,35051.0,35023.0,0.24478608]
[1610340023574,3.4955909,35051.0,35024.0,0.0002]
[1610340024577,3.4103709,35051.0,35024.0,0.0002]
[1610340024777,0.0863,35055.0,35024.0,0.0002]
[1610340024977,0.13632608,35025.0,35024.0,0.0002]
[1610340027578,1.0,35025.0,35023.0,0.10846]
[1610340027979,1.0,35025.0,35024.0,0.0002]
[1610340028778,0.9582,35025.0,35024.0,0.0002]
[1610340028978,1.0,35030.0,35024.0,0.13652608]
[1610340029378,1.0,35030.0,35025.0,0.0002]
[1610340030981,3.3989,35039.0,35029.0,0.13632608]
[1610340031380,3.3989,35039.0,35030.0,0.0002]
[1610340031580,0.09873,35048.0,35030.0,0.0002]
[1610340031780,0.10611,35060.0,35030.0,0.0002]
[1610340031981,4.3412,35063.0,35030.0,0.0002]
[1610340032981,0.13632608,35058.0,35053.0,0.13632608]
[1610340033181,0.11188,35058.0,35053.0,0.13632608]
[1610340034180,0.11188,35058.0,35044.0,0.0855]
[1610340034380,0.11188,35058.0,35033.0,0.0855]
[1610340034581,0.11188,35058.0,35045.0,0.0002]
[1610340034780,0.11188,35058.0,35037.0,0.08338]
[1610340034981,0.13632608,35047.0,35037.0,0.08338]
[1610340035183,0.13632608,35047.0,35038.0,0.0002]
[1610340035582,0.13632608,35047.0,35031.0,0.13632608]
[1610340035782,0.13632608,35047.0,35013.0,0.0851]
[1610340035981,0.13632608,35047.0,35032.0,0.0002]
[1610340036182,0.13632608,35047.0,35028.0,0.09659]
[1610340036784,0.13632608,35047.0,35029.0,0.0002]
[1610340036981,0.13632608,35034.0,35030.0,0.13632608]
[1610340037583,0.13632608,35034.0,35031.0,0.0002]
[1610340037786,0.13632608,35034.0,35030.0,0.13632608]
[1610340037985,0.13632608,35034.0,35031.0,0.0002]
[1610340038385,0.13632608,35034.0,35028.0,0.09659]
[1610340038988,1.13632608,35029.0,35028.0,0.09659]
[1610340039187,1.0,35029.0,35028.0,0.09659]
[1610340039587,1.0,35029.0,35028.0,0.09679]
[1610340040087,1.0,35029.0,35028.0,0.18269]
[1610340040390,1.0,35029.0,35028.0,0.18249]
[1610340040991,5.0,35046.0,35028.0,0.09659]
[1610340041190,0.13632608,35033.0,35026.0,0.13632608]
[1610340041393,0.13632608,35033.0,35011.0,1.0]
[1610340041590,0.13632608,35033.0,35011.0,0.828]
[1610340041893,1.0,35012.0,34997.0,3.5362]
[1610340042090,1.0,35012.0,35009.0,0.0857]
[1610340042291,1.0,35012.0,35011.0,0.0002]
[1610340042490,1.0,35012.0,35011.0,0.10901]
[1610340042893,1.0,35012.0,35011.0,0.10921]
[1610340043092,1.0,35012.0,35011.0,0.24553608]
[1610340043491,0.9555,35012.0,35011.0,0.24553608]
[1610340043891,3.61538576,35042.0,35011.0,0.24553608]
[1610340044092,3.61538576,35042.0,35012.0,0.0002]
[1610340045092,0.13632608,35036.0,35031.0,0.13632608]
[1610340045494,3.61555331,35038.0,35011.0,0.19501]
[1610340045893,1.0,35032.0,35012.0,0.0002]
[1610340047097,0.13632608,35017.0,35013.0,0.086]
[1610340047298,0.13632608,35017.0,35012.0,0.0002]
[1610340047799,1.0,35013.0,35012.0,0.0002]
[1610340048000,1.0,35013.0,35011.0,0.10901]
[1610340048001,1.0,35013.0,34990.0,1.0]
[1610340048199,1.0,35013.0,34990.0,0.808]
[1610340048599,0.13632608,35017.0,34991.0,0.0002]
[1610340049200,0.13632608,34992.0,34969.0,0.09562]
[1610340049399,0.13632608,34992.0,34970.0,0.0002]
[1610340049600,0.25313608,34992.0,34955.0,0.0002]
[1610340050399,0.25313608,34992.0,34948.0,0.0002]
[1610340051201,0.13632608,34960.0,34950.0,0.13632608]
[1610340051803,0.13632608,34960.0,34951.0,0.0002]
[1610340052202,0.13632608,34960.0,34952.0,0.0857]
[1610340052703,0.13632608,34960.0,34948.0,0.0002]
[1610340052903,0.13632608,34960.0,34947.0,0.08353]
[1610340052904,0.13632608,34960.0,34953.0,0.0002]
[1610340053106,0.13632608,34954.0,34948.0,0.0002]
[1610340053304,0.23565608,34954.0,34948.0,0.0002]
[1610340053504,0.23565608,34954.0,34898.0,0.0857]
[1610340053904,0.23565608,34954.0,34905.0,0.0002]
[1610340054106,0.23565608,34954.0,34905.0,0.0903]
[1610340054506,1.0,34924.0,34906.0,1.0]
[1610340054706,1.0,34924.0,34906.0,1.0002]
[1610340055106,1.0,34924.0,34921.0,0.13632608]
[1610340055307,1.0,34924.0,34921.0,0.21323608]
[1610340055507,1.0,34924.0,34922.0,0.0002]
[1610340056107,0.8716,34924.0,34922.0,0.0002]
[1610340056308,0.09933,34954.0,34922.0,0.0002]
[1610340056508,3.41370517,34966.0,34922.0,0.0002]
[1610340056707,3.06070517,34966.0,34922.0,0.0002]
[1610340056908,0.2925,34987.0,34922.0,0.0002]
[1610340057107,0.2925,34987.0,34966.0,0.13632608]
[1610340057510,0.11681,34992.0,34954.0,0.07622]
[1610340057709,3.57349022,34999.0,34954.0,0.07622]
[1610340057909,3.3423,34972.0,34954.0,0.07622]
[1610340058109,3.41478,34972.0,34954.0,0.07622]
[1610340058511,3.41478,34972.0,34940.0,0.07323]
[1610340059114,0.13632608,34941.0,34940.0,0.07323]
[1610340059910,4.031,34956.0,34940.0,0.07323]
[1610340060511,4.0182,34956.0,34940.0,0.07323]
[1610340060913,4.0182,34956.0,34941.0,0.0002]
[1610340061110,4.0182,34956.0,34955.0,0.13632608]
[1610340061311,4.0182,34956.0,34955.0,0.24526608]
[1610340061710,4.0182,34956.0,34955.0,0.10894]
[1610340063114,4.15452608,34956.0,34955.0,0.00294]
[1610340063314,4.15452608,34956.0,34951.0,0.01955]
[1610340063914,4.15452608,34956.0,34940.0,0.07117]
[1610340063915,4.15452608,34956.0,34921.0,0.07691]
[1610340064115,4.15452608,34956.0,34900.0,4.11253537]
[1610340064315,4.15452608,34956.0,34922.0,0.0002]
[1610340064514,4.15452608,34956.0,34922.0,0.07939]
[1610340064714,4.15452608,34956.0,34922.0,0.07919]
[1610340065114,0.13632608,34926.0,34923.0,0.0002]
[1610340066317,0.09748,34943.0,34923.0,0.0002]
[1610340066722,1.0,34924.0,34923.0,0.0002]
[1610340067121,1.13632608,34924.0,34923.0,0.0002]
[1610340067722,1.0,34924.0,34923.0,0.0002]
[1610340067923,0.9151,34924.0,34923.0,0.0002]
[1610340068321,1.0,34950.0,34923.0,1.0002]
[1610340068920,1.0,34950.0,34924.0,0.0002]
[1610340069121,1.0,34950.0,34949.0,0.13632608]
[1610340069321,1.0,34950.0,34949.0,0.24682608]
[1610340069723,1.0,34950.0,34949.0,0.24702608]
[1610340070324,1.0,34950.0,34949.0,0.33152608]
[1610340070526,3.37808183,35007.0,34949.0,0.33152608]
[1610340071123,0.13632608,35011.0,34977.0,0.13632608]
[1610340071525,3.37555374,35018.0,34977.0,0.13632608]
[1610340071924,3.37470975,35026.0,34978.0,0.0002]
[1610340072326,4.3743737,35032.0,34978.0,0.0002]
[1610340072525,3.3743737,35032.0,34978.0,0.085]
[1610340072726,3.37433386,35039.0,34978.0,0.085]
[1610340072926,3.37433386,35039.0,34979.0,0.0002]
[1610340073127,3.37433386,35039.0,35027.0,0.13632608]
[1610340073327,3.37433386,35039.0,35017.0,0.0707]
[1610340073728,0.09731,35041.0,35017.0,0.0707]
[1610340074330,0.09731,35041.0,35009.0,0.08413]
[1610340075131,0.09731,35041.0,35029.0,0.13632608]
[1610340075331,3.46401163,35049.0,35029.0,0.13632608]
[1610340075530,0.08988,35049.0,35029.0,0.13632608]
[1610340075730,0.08988,35049.0,35026.0,0.11192]
[1610340077132,0.13632608,35027.0,35026.0,0.11192]
[1610340077733,0.08988,35049.0,35026.0,0.11192]
[1610340078533,0.08988,35049.0,35033.0,1.0]
[1610340078733,1.0,35050.0,35033.0,1.0]
[1610340078933,0.8503,35050.0,35033.0,1.0]
[1610340079137,0.5924,35050.0,35049.0,0.13632608]
[1610340079336,0.13632608,35062.0,35049.0,0.13632608]
[1610340079736,0.13252608,35062.0,35049.0,0.13632608]
[1610340079936,3.37748303,35070.0,35049.0,0.13632608]
[1610340080337,3.37702118,35074.0,35049.0,0.13632608]
[1610340081038,3.37702118,35074.0,35049.0,0.23644608]
[1610340081239,3.37656228,35078.0,35073.0,0.13632608]
[1610340081639,3.21026228,35078.0,35073.0,0.13632608]
[1610340081837,4.5917,35084.0,35073.0,0.13632608]
[1610340083238,0.13632608,35074.0,35073.0,0.13632608]
[1610340083438,0.21491608,35074.0,35073.0,0.13632608]
[1610340083637,0.21491608,35074.0,34990.0,1.0]
[1610340084339,0.21491608,35074.0,35038.0,0.0853]
[1610340084739,0.21491608,35074.0,35039.0,0.0855]
[1610340084938,0.21491608,35074.0,35044.0,0.0861]
[1610340085138,0.07859,35074.0,35044.0,0.0861]
[1610340086140,0.06179,35074.0,35047.0,0.0865]
[1610340086340,0.02989,35074.0,35047.0,0.0865]
[1610340086940,0.02989,35074.0,35048.0,0.0002]
[1610340087141,0.02989,35074.0,35048.0,0.07794]
[1610340087542,0.13632608,35049.0,35048.0,0.07794]
[1610340087741,0.13632608,35049.0,35048.0,0.07774]
[1610340087943,0.11557,35065.0,35048.0,0.07774]
[1610340089444,1.0,35054.0,35048.0,0.07774]
[1610340090046,1.07703,35054.0,35037.0,1.0]
[1610340090745,1.07703,35054.0,35037.0,0.901]
[1610340090944,1.07703,35054.0,35037.0,0.819]
[1610340091144,0.07703,35054.0,35032.0,4.383]
[1610340091548,0.13632608,35033.0,35032.0,4.383]
[1610340093546,1.13632608,35033.0,35032.0,4.51932608]
[1610340093747,1.13632608,35033.0,35032.0,4.383]
[1610340097155,1.0,35033.0,35032.0,4.383]
[1610340097353,0.10631,35038.0,35021.0,0.0848]
[1610340097554,0.13632608,35046.0,35037.0,0.13632608]
[1610340097754,0.13632608,35046.0,35022.0,0.0002]
[1610340097954,0.23469608,35046.0,35021.0,0.0848]
[1610340098154,0.23469608,35046.0,35022.0,0.0002]
[1610340098955,0.09837,35046.0,35022.0,0.0002]
[1610340099155,0.01177,35046.0,35022.0,0.0002]
[1610340099556,0.01177,35046.0,35045.0,0.13632608]
[1610340100157,3.5874,35055.0,35045.0,0.13632608]
[1610340100356,3.5874,35055.0,35045.0,0.13652608]
[1610340100557,3.5874,35055.0,35046.0,0.0002]
[1610340100756,3.43606,35080.0,35046.0,0.0002]
[1610340101356,1.0,35088.0,35070.0,1.0]
[1610340101557,1.0,35088.0,35084.0,0.13632608]
[1610340101758,1.0,35088.0,35085.0,0.0861]
[1610340101759,0.9698,35088.0,35085.0,0.0861]
[1610340101957,0.7999,35088.0,35085.0,0.0861]
[1610340102159,1.0,35100.0,35085.0,0.0861]
[1610340103358,1.0,35100.0,35083.0,1.0]
[1610340103558,1.07818,35100.0,35089.0,0.13632608]
[1610340104359,0.07818,35100.0,35089.0,0.13632608]
[1610340104760,0.07818,35100.0,35090.0,0.0864]
[1610340105261,0.82728,35105.0,35090.0,0.0864]
[1610340105462,3.35923004,35129.0,35090.0,0.0864]
[1610340105661,3.35923004,35129.0,35104.0,0.13632608]
[1610340105863,1.0,35130.0,35104.0,1.13632608]
[1610340107464,0.9142,35130.0,35104.0,1.13632608]
[1610340107667,0.8312,35130.0,35129.0,0.13632608]
[1610340107864,1.0,35153.0,35129.0,1.13632608]
[1610340108065,3.3432823,35169.0,35129.0,0.13632608]
[1610340108264,1.0,35156.0,35129.0,1.13632608]
[1610340108464,1.08113,35156.0,35129.0,1.13632608]
[1610340109064,1.08113,35156.0,35130.0,0.0843]
[1610340109664,1.21745608,35156.0,35141.0,0.13632608]
[1610340110065,1.21745608,35156.0,35132.0,0.08355]
[1610340110267,1.21745608,35156.0,35121.0,0.18456]
[1610340110268,0.21745608,35156.0,35121.0,0.09886]
[1610340110864,0.21745608,35156.0,35061.0,1.0]
[1610340110865,0.21745608,35156.0,35062.0,0.2801]
[1610340111264,0.21745608,35156.0,35101.0,0.08502]
[1610340111665,0.13632608,35112.0,35103.0,0.13632608]
[1610340112666,0.21225608,35112.0,35103.0,0.13632608]
[1610340113168,0.21225608,35112.0,35104.0,0.0002]
[1610340113569,0.21225608,35112.0,35111.0,0.13632608]
[1610340113969,0.07593,35112.0,35111.0,0.13632608]
[1610340114168,0.0757,35127.0,35111.0,0.13632608]
[1610340114568,0.2775,35155.0,35112.0,0.0002]
[1610340115569,0.2775,35155.0,35135.0,0.13632608]
[1610340115771,0.08113,35156.0,35135.0,0.13632608]
[1610340115970,3.8959,35145.0,35135.0,0.13632608]
[1610340116170,0.0863,35151.0,35135.0,0.13632608]
[1610340116570,0.0863,35151.0,35135.0,0.21595608]
[1610340117373,0.2765,35189.0,35135.0,0.21595608]
[1610340117570,0.13632608,35158.0,35157.0,0.13632608]
[1610340118171,0.11479,35162.0,35151.0,1.0]
[1610340119572,0.11479,35162.0,35155.0,0.13632608]
[1610340119772,0.11479,35162.0,35151.0,1.0]
[1610340120174,1.0,35158.0,35140.0,1.0]
[1610340121276,0.9959,35158.0,35140.0,1.0]
[1610340121678,0.13632608,35155.0,35135.0,0.64213]
[1610340122079,0.13632608,35155.0,35136.0,0.0002]
[1610340122679,0.13632608,35155.0,35135.0,0.5625]
[1610340122882,0.13632608,35155.0,35111.0,0.02279]
[1610340123086,0.13632608,35155.0,35104.0,0.1036]
[1610340123284,0.13632608,35155.0,35112.0,0.0002]
[1610340123482,0.13632608,35155.0,35113.0,0.0848]
[1610340123683,0.13632608,35114.0,35101.0,3.9643]
[1610340124084,0.13632608,35114.0,35104.0,0.0002]
[1610340124282,0.13632608,35114.0,35102.0,0.0002]
[1610340125586,0.13632608,35103.0,35074.0,0.13632608]
[1610340125784,0.24492608,35103.0,35074.0,0.13632608]
[1610340126184,0.24492608,35103.0,35075.0,0.0002]
[1610340126385,0.24492608,35103.0,35075.0,0.08927]
[1610340126784,0.24492608,35103.0,35076.0,0.0002]
[1610340127787,0.13632608,35077.0,35076.0,0.0002]
[1610340128191,0.13632608,35077.0,35067.0,0.0002]
[1610340128386,0.13632608,35077.0,35044.0,0.0002]
[1610340129688,0.0851,35084.0,35044.0,0.0002]
[1610340129887,0.08043,35089.0,35044.0,0.08737]
[1610340130288,0.08043,35089.0,35045.0,0.0002]
[1610340130489,0.08043,35089.0,35045.0,0.07527]
[1610340130890,0.08043,35089.0,35046.0,0.0002]
[1610340131490,0.0855,35088.0,35046.0,0.0002]
[1610340131691,0.0866,35087.0,35044.0,0.0002]
[1610340132491,0.0855,35088.0,35044.0,0.0002]
[1610340132691,0.0855,35088.0,35045.0,0.0848]
[1610340132891,0.08043,35089.0,35043.0,4.3739]
[1610340133091,1.0,35091.0,35043.0,4.3739]
[1610340133492,3.36077628,35098.0,35044.0,0.0002]
[1610340133892,3.36299984,35100.0,35044.0,0.0002]
[1610340134894,4.7784,35096.0,35044.0,0.0002]
[1610340135094,4.7784,35096.0,35044.0,0.0867]
[1610340135294,4.7784,35096.0,35045.0,0.0002]
[1610340135695,4.7784,35096.0,35064.0,0.13632608]
[1610340137398,4.7784,35096.0,35065.0,0.0002]
[1610340137797,0.13632608,35083.0,35070.0,0.13632608]
[1610340138698,0.13632608,35083.0,35061.0,0.07657]
[1610340139305,0.13632608,35083.0,35062.0,0.0002]
[1610340139499,1.0,35081.0,35063.0,1.0]
[1610340139698,0.13632608,35069.0,35066.0,0.13632608]
[1610340139899,1.0,35081.0,35066.0,0.13632608]
[1610340140298,1.0,35081.0,35067.0,0.0002]
[1610340141101,1.0,35081.0,35064.0,0.0002]
[1610340141499,0.0729,35087.0,35064.0,0.0002]
[1610340141700,0.13632608,35075.0,35072.0,1.13632608]
[1610340142501,0.0729,35087.0,35072.0,1.13632608]
[1610340142802,0.0729,35087.0,35073.0,0.0852]
[1610340143001,0.0729,35087.0,35072.0,1.13632608]